fUST/lending_fUST_20250913
["ID","MTS","AMOUNT","RATE_DAILY","PERIOD"]
[385273539,1757724644165,-800.0,0.00028067,2]
[385273540,1757724644175,-168.0,0.00028068,2]
[385273541,1757724644184,-376.58931763,0.00028073,2]
[385273542,1757724644193,-493.25233541,0.00028099,2]
[385273543,1757724644203,-800.0,0.00028122,2]
[385273544,1757724644212,-800.0,0.00028168,2]
[385273545,1757724644222,-800.0,0.00028171,2]
[385273546,1757724644231,-500.0,0.00028188,2]
[385273547,1757724644241,-800.0,0.00028193,2]
[385273548,1757724644250,-800.0,0.00028235,2]
[385273549,1757724644259,-800.0,0.00028238,2]
[385273550,1757724644269,-800.0,0.00028303,2]
[385273551,1757724644279,-2886.03034844,0.00028305,5]
[385273552,1757724644290,-800.0,0.00028324,2]
[385273553,1757724644300,-500.0,0.00028349,2]
[385273554,1757724644310,-157.67052,0.00028353,15]
[385273555,1757724644319,-376.58931763,0.00028354,2]
[385273556,1757724644329,-154.12483647,0.0002839,2]
[385273557,1757724644338,-1445.5,0.00028399,7]
[385273558,1757724644347,-2000.0,0.00028399,10]
[385273559,1757724644357,-500.0,0.00028401,2]
[385273560,1757724644369,-152.79744553,0.00028406,2]
[385273561,1757724644378,-477.48165563,0.00028419,2]
[385273562,1757724644387,-811.87707271,0.00028422,2]
[385273563,1757724644396,-1441.605,0.00028423,2]
[385273564,1757724644405,-160.0,0.00028433,2]
[385273565,1757724644414,-1261.4,0.00028453,15]
[385273566,1757724644423,-500.0,0.00028462,2]
[385273567,1757724644433,-168.0,0.00028474,2]
[385273568,1757724644442,-154.12483647,0.0002849,2]
[385273569,1757724644452,-1592.78813236,0.000285,7]
[385273570,1757724644461,-1393.70809,0.000285,120]
[385273571,1757724644472,-152.79744553,0.00028506,2]
[385273572,1757724644481,-650379.172546,0.00028512,2]
[385273573,1757724644490,-152.33240496,0.00028519,2]
[385273574,1757724644500,-613.11,0.00028531,2]
[385273575,1757724644510,-146812.01932842,0.00028542,2]
[385273576,1757724644520,-477.4816556,0.00028543,2]
[385273577,1757724644539,-1261.505,0.00028553,15]
[385273578,1757724644550,-157.67052,0.00028555,20]
[385273579,1757724644559,-500.0,0.00028573,5]
[385273580,1757724644568,-500.0,0.00028573,5]
[385273581,1757724644578,-500.0,0.00028573,5]
[385273582,1757724644587,-508.04581078,0.00028573,5]
[385273583,1757724644596,-154.12483647,0.0002859,2]
[385273584,1757724644607,-152.79744553,0.00028606,2]
[385273585,1757724644617,-500.0,0.00028613,2]
[385273586,1757724644627,-168.0,0.00028618,2]
[385273587,1757724644637,-500.0,0.00028632,10]
[385273588,1757724644646,-500.0,0.00028632,7]
[385273589,1757724644656,-500.0,0.00028632,2]
[385273590,1757724644666,-500.0,0.00028632,10]
[385273591,1757724644675,-322.55,0.00028632,10]
[385273592,1757724644684,-376.58931763,0.00028635,2]
[385273593,1757724644694,-5585.84168568,0.00028642,7]
[385273594,1757724644703,-554.43145266,0.00028643,10]
[385273595,1757724644712,-477.4816556,0.00028668,2]
[385273596,1757724644721,-811.87707271,0.00028669,2]
[385273597,1757724644731,-966.45,0.00028673,2]
[385273598,1757724644740,-154.12483647,0.0002869,2]
[385273599,1757724644750,-1113.764819,0.000287,120]
[385273600,1757724644760,-417.15472785,0.000287,7]
[385273601,1757724644858,-500.0,0.00028705,2]
[385273602,1757724644871,-500.0,0.00028736,2]
[385273603,1757724644881,-4000.0,0.0002876,5]
[385273604,1757724644891,-200.0,0.00028767,120]
[385273605,1757724644901,-1111.0,0.00028787,19]
[385273606,1757724644911,-154.12483647,0.0002879,2]
[385273607,1757724644921,-477.4816556,0.00028792,2]
[385273608,1757724644932,-168.66347197,0.000288,7]
[385273609,1757724644942,-152.0,0.000288,120]
[385273610,1757724644952,-1203.82,0.000288,7]
[385273611,1757724644963,-30000.0,0.0002881,60]
[385273612,1757724644972,-31672.06583329,0.0002884,30]
[385273613,1757724644983,-200.0,0.0002886,120]
[385273614,1757724644994,-907.7999097,0.00028862,2]
[385273615,1757724645004,-154.12483647,0.0002889,2]
[385273616,1757724645015,-2559.0,0.00028892,60]
[385273617,1757724645024,-1000.0,0.00028895,60]
[385273618,1757724645033,-720.94884732,0.000289,30]
[385273619,1757724645043,-39821.32,0.000289,7]
[385273620,1757724645052,-3267.15,0.000289,7]
[385273621,1757724645061,-160.0,0.000289,30]
[385273622,1757724645070,-417.15472785,0.000289,30]
[385273623,1757724645080,-351.02,0.00028905,60]
[385273624,1757724645089,-2605.33025237,0.00028916,2]
[385273625,1757724645098,-10319.99683052,0.00028916,2]
[385273626,1757724645111,-811.87707271,0.00028916,2]
[385273627,1757724645120,-376.58931763,0.00028916,2]
[385273628,1757724645131,-477.4816556,0.00028916,2]
[385273629,1757724645139,-841.96416236,0.00028917,2]
[385273630,1757724645149,-151.0,0.00028936,7]
[385273631,1757724645158,-534.4,0.00028938,60]
[385273632,1757724645168,-303.03503525,0.00028957,2]
[385273633,1757724645177,-168.0,0.00028984,2]
[385273634,1757724645186,-154.12483647,0.0002899,2]
[385273635,1757724645195,-456.0,0.00028995,60]
[385273636,1757724645205,-877.13986604,0.00029,2]
[385273637,1757724645214,-3489.46197823,0.00029,2]
[385273638,1757724645223,-5139.9399385,0.00029,2]
[385273639,1757724645232,-417.15472785,0.00029,10]
[385273640,1757724645242,-209.0,0.00029,2]
[385273641,1757724645251,-160.0,0.00029,10]
[385273642,1757724645260,-160.0,0.00029,10]
[385273643,1757724645271,-160.0,0.00029,30]
[385273644,1757724645280,-1393.70809,0.00029,120]
[385273645,1757724645293,-292.92999,0.00029,120]
[385273646,1757724645302,-160.0,0.00029,10]
[385273647,1757724645312,-10585.41552735,0.00029,10]
[385273648,1757724645321,-847.0429734,0.00029,30]
[385273649,1757724645331,-217.7145751,0.00029,3]
[385273650,1757724645341,-217.7145751,0.00029,10]
[385273651,1757724645349,-217.7145751,0.00029,30]
[385273652,1757724645358,-233.13074058,0.00029,10]
[385273653,1757724645368,-233.13074058,0.00029,30]
[385273654,1757724645379,-847.0429734,0.00029,10]
[385273655,1757724645388,-847.0429734,0.00029,30]
[385273656,1757724645398,-2000.0,0.00029,2]
[385273657,1757724645407,-151.0,0.00029,7]
[385273658,1757724645416,-151.0,0.00029,7]
[385273659,1757724645425,-160.0,0.00029,10]
[385273660,1757724645436,-160.0,0.00029,10]
[385273661,1757724645445,-417.15472785,0.00029,10]
[385273662,1757724645454,-250.0,0.00029,7]
[385273663,1757724645463,-250.0,0.00029,7]
[385273664,1757724645473,-250.0,0.00029,7]
[385273665,1757724645482,-250.0,0.00029,7]
[385273666,1757724645491,-250.0,0.00029,7]
[385273667,1757724645502,-256.3,0.00029,7]
[385273668,1757724645511,-351.0462781,0.00029009,7]
[385273670,1757724645520,-500.0,0.0002901,2]
[385273671,1757724645530,-2700.0,0.0002901,7]
[385273672,1757724645539,-151.0,0.00029016,7]
[385273673,1757724645549,-1000.0,0.00029016,2]
[385273674,1757724645558,-1000.0,0.00029016,2]
[385273675,1757724645567,-1000.0,0.00029016,2]
[385273677,1757724645577,-1000.0,0.00029016,2]
[385273679,1757724645587,-1000.0,0.00029016,2]
[385273680,1757724645597,-1000.0,0.00029016,2]
[385273681,1757724645606,-1000.0,0.00029016,2]
[385273682,1757724645616,-1000.0,0.00029016,2]
[385273684,1757724645626,-1000.0,0.00029016,2]
[385273686,1757724645635,-1000.0,0.00029016,2]
[385273690,1757724645646,-1000.0,0.00029016,2]
[385273692,1757724645655,-1000.0,0.00029016,2]
[385273694,1757724645665,-1000.0,0.00029016,2]
[385273696,1757724645674,-1000.0,0.00029016,2]
[385273698,1757724645683,-1000.0,0.00029016,2]
[385273700,1757724645693,-1000.0,0.00029016,2]
[385273702,1757724645702,-1000.0,0.00029016,2]
[385273704,1757724645711,-1000.0,0.00029016,2]
[385273706,1757724645720,-534.710926,0.00029016,2]
[385273707,1757724645730,-384.77604029,0.00029016,2]
[385273709,1757724645738,-3075.46912317,0.00029016,2]
[385273710,1757724645749,-250.04896946,0.00029016,2]
[385273711,1757724645759,-239.80910507,0.00029016,10]
[385273712,1757724645768,-1092.88149729,0.00029016,10]
[385273713,1757724645779,-200.50462621,0.00029016,7]
[385273714,1757724645788,-200.0,0.00029016,10]
[385273715,1757724645798,-10566.66003092,0.00029016,7]
[385273716,1757724645807,-498.0,0.00029016,7]
[385273717,1757724645817,-153.99707132,0.00029016,7]
[385273718,1757724645827,-326.14591008,0.00029016,7]
[385273719,1757724645836,-810.87432683,0.00029016,15]
[385273720,1757724645847,-20162.65614168,0.00029016,2]
[385273721,1757724645857,-1014.97154419,0.00029016,10]
[385273722,1757724645866,-200.0,0.00029016,14]
[385273723,1757724645875,-983.51196746,0.00029016,2]
[385273724,1757724645884,-207.44071144,0.00029016,7]
[385273725,1757724645894,-1183731.61347833,0.00029016,20]
[385273726,1757724645903,-5317777.55177636,0.00029016,20]
[385273727,1757724645912,-225.00395608,0.00029016,15]
[385273728,1757724645922,-194.36424292,0.00029016,12]
[385273729,1757724645931,-907.37280556,0.00029016,14]
[385273730,1757724645941,-1536.65472053,0.00029016,14]
[385273731,1757724645950,-1004.60693662,0.00029016,14]
[385273732,1757724645960,-169.14625808,0.00029016,30]
[385273733,1757724645970,-1390.0,0.00029016,40]
[385273734,1757724645980,-5000.0,0.00029016,5]
[385273735,1757724645989,-4134.30659817,0.00029016,30]
[385273736,1757724645999,-2447.87682901,0.00029016,7]
[385273737,1757724646009,-2796.0,0.00029016,10]
[385273738,1757724646018,-1000.0,0.00029016,10]
[385273739,1757724646028,-1000.0,0.00029016,15]
[385273740,1757724646037,-300.0,0.00029016,2]
[385273741,1757724646047,-300.0,0.00029016,2]
[385273742,1757724646056,-678825.64887326,0.00029016,20]
[385273743,1757724646065,-1054586.45829926,0.00029016,20]
[385273744,1757724646074,-258.03643407,0.00029016,2]
[385273745,1757724646084,-1360.96187418,0.00029016,2]
[385273746,1757724646093,-306.55958468,0.00029016,7]
[385273747,1757724646102,-49012.6010929,0.00029016,2]
[385273748,1757724646111,-6289.82749003,0.00029016,2]
[385273749,1757724646120,-1483.33690487,0.00029016,2]
[385273750,1757724646130,-1715.8044074,0.00029016,2]
[385273752,1757724646139,-2074.57303636,0.00029016,2]
[385273754,1757724646148,-1589.0,0.00029016,3]
[385273756,1757724646157,-1868.49558104,0.00029016,2]
[385273758,1757724646166,-30434.53919994,0.00029016,2]
[385273760,1757724646175,-1395.97869108,0.00029016,2]
[385273762,1757724646185,-5890.78929463,0.00029016,2]
[385273764,1757724646194,-10678.11479653,0.00029016,2]
[385273765,1757724646203,-515.57276157,0.00029016,30]
[385273766,1757724646213,-2920.0,0.00029016,2]
[385273767,1757724646222,-2347.08685963,0.00029016,2]
[385273768,1757724646231,-100197.82643059,0.00029016,2]
[385273769,1757724646240,-5030.18443944,0.00029016,2]
[385273770,1757724646250,-3763.999999,0.00029016,2]
[385273771,1757724646259,-91186.38287286,0.00029016,2]
[385273772,1757724646345,-300.0,0.00029016,2]
[385273773,1757724646355,-3878.92229391,0.00029016,2]
[385273774,1757724646366,-809.16735023,0.00029016,2]
[385273775,1757724646375,-296.68127042,0.00029016,2]
[385273776,1757724646385,-326.79224858,0.00029016,2]
[385273777,1757724646394,-291.6542835,0.00029016,2]
[385273778,1757724646403,-51703.45233858,0.00029016,2]
[385273779,1757724646412,-636.81494964,0.00029016,2]
[385273781,1757724646421,-156.5151221,0.00029016,2]
[385273782,1757724646430,-157.52434941,0.00029016,2]
[385273783,1757724646439,-507.24843684,0.00029016,2]
[385273784,1757724646448,-179.17987522,0.00029016,2]
[385273785,1757724646456,-467.54319746,0.00029016,2]
[385273786,1757724646466,-189.04387652,0.00029016,2]
[385273787,1757724646474,-650.759013,0.00029016,2]
[385273788,1757724646483,-903.88925059,0.00029016,2]
[385273789,1757724646492,-163.1942982,0.00029016,2]
[385273790,1757724646501,-201.32332016,0.00029016,2]
[385273791,1757724646511,-166.48811294,0.00029016,2]
[385273792,1757724646520,-150.23720099,0.00029016,2]
[385273793,1757724646529,-258.35839888,0.00029016,2]
[385273794,1757724646538,-508874.13425432,0.00029016,20]
[385273795,1757724646788,-2823.97669531,0.00028106,2]
[385273796,1757724646800,-2176.02330469,0.00028106,2]
[385273797,1757724646809,-500.0,0.00028521,2]
[385273798,1757724646818,-11689.6486316,0.00029016,20]
[385273799,1757724646837,-441.38932044,0.00029016,20]
[385273831,1757725832345,-247.51329575,0.0001911,2]
[385273833,1757725832354,-3247.27411957,0.00019701,2]
[385273838,1757725832401,-298.10242243,0.00019701,2]
[385273840,1757725832412,-399.70554934,0.00019701,2]
[385274011,1757725843900,-1054.91790866,0.00019701,2]
[385274013,1757725843909,-516.3427883,0.000199,2]
[385274014,1757725843919,-217.7145751,0.00021081,2]
[385274015,1757725843928,-516.34278811,0.00021149,2]
[385274016,1757725843938,-1200.0,0.00021763,2]
[385274017,1757725843947,-1200.0,0.00021764,2]
[385274018,1757725843957,-300.0,0.00021764,2]
[385274019,1757725843966,-300.0,0.00021764,2]
[385274020,1757725843975,-300.0,0.00021764,2]
[385274021,1757725843984,-10000.0,0.00021765,2]
[385274022,1757725843994,-1000.0,0.00021823,2]
[385274023,1757725844003,-500.0,0.00022198,2]
[385274024,1757725844013,-500.0,0.00022198,2]
[385274025,1757725844023,-500.0,0.00022198,2]
[385274026,1757725844032,-500.0,0.00022198,2]
[385274027,1757725844041,-500.0,0.00022198,2]
[385274028,1757725844051,-500.0,0.00022198,2]
[385274029,1757725844060,-500.0,0.00022198,2]
[385274030,1757725844070,-500.0,0.00022198,2]
[385274031,1757725844079,-500.0,0.00022198,2]
[385274032,1757725844089,-500.0,0.00022198,2]
[385274033,1757725844098,-500.0,0.00022198,2]
[385274034,1757725844108,-298.98178455,0.00022198,2]
[385274035,1757725844117,-500.0,0.00022198,2]
[385274036,1757725844126,-500.0,0.00022198,2]
[385274037,1757725844135,-500.0,0.00022198,2]
[385274038,1757725844144,-537.12454005,0.00022198,2]
[385274039,1757725844155,-500.0,0.00022198,2]
[385274040,1757725844164,-500.0,0.00022198,2]
[385274041,1757725844174,-500.0,0.00022198,2]
[385274042,1757725844183,-500.0,0.00022198,2]
[385274043,1757725844193,-500.0,0.00022198,2]
[385274044,1757725844203,-500.0,0.00022198,2]
[385274045,1757725844212,-500.0,0.00022198,2]
[385274046,1757725844221,-500.0,0.00022198,2]
[385274047,1757725844230,-500.0,0.00022198,2]
[385274048,1757725844239,-500.0,0.00022198,2]
[385274049,1757725844248,-500.0,0.00022198,2]
[385274050,1757725844258,-500.0,0.00022198,2]
[385274051,1757725844268,-500.0,0.00022198,2]
[385274052,1757725844277,-240.73648707,0.00022198,2]
[385274053,1757725844286,-500.0,0.00022198,2]
[385274054,1757725844296,-500.0,0.00022198,2]
[385274055,1757725844305,-500.0,0.00022198,2]
[385274056,1757725844315,-500.0,0.00022198,2]
[385274057,1757725844324,-47647.4629131,0.00022199,2]
[385274058,1757725844333,-300.0,0.000222,20]
[385274059,1757725844342,-300.0,0.000222,20]
[385274060,1757725844351,-300.0,0.000222,20]
[385274061,1757725844361,-300.0,0.000222,20]
[385274062,1757725844371,-300.0,0.000222,20]
[385274063,1757725844380,-300.0,0.000222,20]
[385274064,1757725844389,-300.0,0.000222,20]
[385274065,1757725844398,-300.0,0.000222,20]
[385274066,1757725844407,-300.0,0.000222,20]
[385274067,1757725844417,-300.0,0.000222,20]
[385274068,1757725844426,-300.0,0.000222,20]
[385274069,1757725844435,-300.0,0.000222,20]
[385274070,1757725844444,-300.0,0.000222,20]
[385274071,1757725844453,-300.0,0.000222,20]
[385274072,1757725844462,-300.0,0.000222,20]
[385274073,1757725844472,-516.34278811,0.00022398,2]
[385274074,1757725844481,-600.0,0.00022643,20]
[385274075,1757725844490,-238.36164351,0.00023287,2]
[385274076,1757725844499,-24900.0,0.00023288,2]
[385274077,1757725844508,-160.0,0.00023564,2]
[385274078,1757725844517,-160.0,0.00023564,2]
[385274079,1757725844526,-847.0429734,0.00023564,2]
[385274080,1757725844536,-233.13074058,0.00023564,2]
[385274081,1757725844545,-531.04384426,0.00023564,2]
[385274082,1757725844554,-594.6,0.00023626,2]
[385274083,1757725844563,-516.34278811,0.00023647,2]
[385274084,1757725844572,-300.0,0.00023656,2]
[385274085,1757725844581,-1200.0,0.00023766,2]
[385274086,1757725844591,-516.34278811,0.00024896,2]
[385274087,1757725844600,-1255.42,0.000249,7]
[385274088,1757725844609,-3872.17,0.000249,7]
[385274089,1757725844620,-41527.95,0.000249,7]
[385274090,1757725844632,-1569.13,0.000249,7]
[385274091,1757725844641,-531.04384426,0.000249,7]
[385274092,1757725844650,-126455.357184,0.000249,2]
[385274133,1757725846429,-4421.2679081,0.000249,2]
[385274134,1757725846439,-1072.81722564,0.000249,2]
[385274136,1757725846490,-595.37,0.00024887,2]
[385274137,1757725846499,-3354.7357626,0.000249,2]
[385274138,1757725846510,-16433.09065569,0.000249,2]
[385274141,1757725951956,152.0,0.00024,120]
[385274142,1757725953386,152.0,0.000257,120]
[385274143,1757726142845,141361.0,0.00029034,60]
[385274144,1757726435351,464.56936,0.00027,120]
[385274147,1757726594563,202.0,0.00025157,120]
[385274148,1757726595945,202.0,0.00026414,120]
[385274149,1757726626682,-140.92999,0.000274,120]
[385274150,1757726626695,-11.07001,0.000274,120]
[385274151,1757726626705,-140.92999,0.00027735,120]
[385274152,1757726626741,-61.07001,0.00027735,120]
[385274153,1757726626881,-61.07001,0.000283,120]
[385274154,1757726626893,-77.85998,0.000283,120]
[385274155,1757726626905,-325.63937,0.000283,120]
[385274156,1757726626915,-138.92999,0.00029,120]
[385274157,1757726626972,-46.0,0.00029,120]
[385274158,1757726627031,-108.0,0.00029,120]
[385274159,1757726627071,-154.0,0.00029035,120]
[385274160,1757726627133,-908.0,0.00029035,120]
[385274161,1757726627164,-152.0,0.000291,120]
[385274162,1757726627191,-202.0,0.00029122,120]
[385274163,1757726627224,-1393.70809,0.000295,120]
[385274164,1757726627254,-369.25182513,0.000295,120]
[385274165,1757726627429,-908.0,0.000295,120]
[385274166,1757726627496,-152.0,0.000295,120]
[385274167,1757726627514,-202.0,0.000295,120]
[385274168,1757726627668,-46.23601185,0.000295,120]
[385274169,1757726627684,-464.56936,0.000296,120]
[385274170,1757726627695,-505.0,0.00029608,120]
[385274171,1757726627703,-200.0,0.00029633,120]
[385274172,1757726627713,-200.0,0.00029709,120]
[385274173,1757726627722,-24.13873,0.00029769,120]
[385274174,1757726627792,-175.86127,0.00029769,120]
[385274175,1757726627817,-777.57952091,0.00029998,120]
[385274176,1757726627826,-739.34,0.0003,120]
[385274177,1757726627835,-160.56831607,0.0003,120]
[385274178,1757726735513,-39.43168393,0.0003,120]
[385274179,1757726735537,-135.66831607,0.0003,120]
[385274180,1757726735789,-292.92999,0.0003,120]
[385274181,1757726735860,-965.10978393,0.0003,120]
[385274182,1757726735884,-300.0,0.0003,120]
[385274183,1757726735907,-128.59830607,0.0003,120]
[385274184,1757726735977,-200.0,0.0003,120]
[385274185,1757726736156,-200.0,0.0003,120]
[385274186,1757726736227,-202.0,0.0003,120]
[385274187,1757726736297,-234.8756389,0.0003,120]
[385274188,1757726736319,-262.47289716,0.0003,120]
[385274189,1757726736342,-925.79996484,0.0003,120]
[385274190,1757726736365,-313.844198,0.0003,120]
[385274191,1757726736389,-2048.47192963,0.0003,120]
[385274192,1757726736412,-1246.08859386,0.0003,120]
[385274193,1757726736438,-2685.94079444,0.0003,120]
[385274194,1757726736461,-531.04384426,0.0003,120]
[385274195,1757726736537,-292.92999,0.000303,120]
[385274196,1757726736562,-171.63937,0.00030346,120]
[385274197,1757726736637,-28.36063,0.00030346,120]
[385274198,1757726736661,-707.46703728,0.000305,120]
[385274199,1757726736743,-686.24105272,0.000305,120]
[385274200,1757726736766,-202.0,0.00030578,120]
[385274201,1757726736790,-583.82766728,0.000308,120]
[385274202,1757726736814,-152.0,0.000308,120]
[385274203,1757726736838,-380.48476568,0.000309,120]
[385274244,1757726830924,200.0,0.0003034,120]
[385274278,1757726853819,2163.73808,0.0003,120]
[385274280,1757726873882,505.0,0.000296,120]
[385274281,1757726900981,2978.72390328,0.000295,120]
[385274282,1757726913121,300.0,0.00029035,120]
[385274283,1757726916762,202.0,0.00028,120]
[385274284,1757726916784,464.56936,0.00028,120]
[385274305,1757727032570,-10585.41552735,0.0001866,2]
[385274307,1757727032579,-1200.0,0.00018848,2]
[385274309,1757727032589,-300.0,0.00019293,2]
[385274311,1757727032598,-300.0,0.00019293,2]
[385274313,1757727032607,-300.0,0.00019293,2]
[385274315,1757727032617,-1200.0,0.00019293,2]
[385274317,1757727032625,-300.0,0.00019293,2]
[385274319,1757727032635,-847.0429734,0.00019495,2]
[385274321,1757727032644,-233.13074058,0.00019496,2]
[385274323,1757727032653,-217.7145751,0.00019496,2]
[385274325,1757727032662,-160.0,0.00019496,2]
[385274327,1757727032672,-160.0,0.00019496,2]
[385274329,1757727032681,-160.0,0.00019496,2]
[385274331,1757727032690,-417.15472785,0.00019687,2]
[385274333,1757727032700,-160.0,0.00019687,2]
[385274335,1757727032709,-300.0,0.00019893,20]
[385274337,1757727032719,-300.0,0.00019893,20]
[385274339,1757727032728,-300.0,0.00019893,20]
[385274341,1757727032738,-300.0,0.00019893,20]
[385274343,1757727032747,-300.0,0.00019893,20]
[385274345,1757727032756,-300.0,0.00019893,20]
[385274347,1757727032765,-300.0,0.00019893,20]
[385274349,1757727032774,-300.0,0.00019893,20]
[385274351,1757727032783,-300.0,0.00019893,20]
[385274353,1757727032793,-300.0,0.00019893,20]
[385274355,1757727032802,-300.0,0.00019893,20]
[385274357,1757727032811,-300.0,0.00019893,20]
[385274364,1757727032901,-300.0,0.00019893,20]
[385274365,1757727032925,-300.0,0.00019893,20]
[385274366,1757727032934,-300.0,0.00019893,20]
[385274367,1757727032943,-637.74322097,0.000199,2]
[385274368,1757727032953,-265.04675884,0.0002,2]
[385274369,1757727032962,-193.26967065,0.0002029,20]
[385274370,1757727032973,-305.86803484,0.0002029,20]
[385274395,1757727035832,200.0,0.00027,120]
[385274442,1757727043765,-300.0,0.00018473,2]
[385274445,1757727043784,-4700.0,0.00018473,2]
[385274446,1757727043794,-100.86229451,0.0002029,20]
[385274448,1757727043803,-1000.0,0.00020547,10]
[385274450,1757727043812,-1200.0,0.00020547,2]
[385274451,1757727043821,-1000.0,0.00020821,10]
[385274452,1757727043831,-420.0,0.00021023,2]
[385274453,1757727043840,-300.0,0.00021023,2]
[385274454,1757727043850,-300.0,0.00021023,2]
[385274455,1757727043859,-300.0,0.00021023,2]
[385274456,1757727043869,-1000.0,0.00021095,10]
[385274457,1757727043878,-1200.0,0.00021125,2]
[385274458,1757727043887,-637.74322079,0.00021149,2]
[385274459,1757727043896,-1000.0,0.00021369,10]
[385274460,1757727043906,-1000.0,0.00021643,10]
[385274461,1757727043916,-330.13365307,0.00021799,2]
[385274462,1757727043925,-500.0,0.00021799,2]
[385274463,1757727043934,-500.0,0.00021799,2]
[385274464,1757727043944,-327.66671129,0.00021799,2]
[385274465,1757727043953,-471.51638095,0.000218,7]
[385274466,1757727043963,-40539.34374874,0.000218,2]
[385274467,1757727043973,-1000.0,0.00021917,10]
[385274468,1757727043982,-863.3132805,0.00022191,10]
[385274469,1757727043991,-720.0,0.00022319,20]
[385274470,1757727044001,-637.74322079,0.00022398,2]
[385274471,1757727044011,-489.0,0.00022908,2]
[385274472,1757727044020,-250.65364145,0.00023227,2]
[385274473,1757727044029,-274.2974964,0.00023288,2]
[385274474,1757727044039,-637.74322079,0.00023647,2]
[385274475,1757727044049,-4646.7687026,0.00024203,2]
[385274476,1757727044058,-864.0,0.00024551,20]
[385274477,1757727044068,-637.74322079,0.00024896,2]
[385274478,1757727044077,-570.56,0.00024899,2]
[385274479,1757727044087,-1250.25,0.000249,7]
[385274480,1757727044096,-217.7145751,0.000249,7]
[385274481,1757727044105,-847.0429734,0.000249,7]
[385274482,1757727044115,-161.47483523,0.00025,5]
[385274483,1757727044125,-8630.03519567,0.00025,7]
[385274484,1757727044134,-22367.0411046,0.00025058,2]
[385274485,1757727044144,-480.0,0.00026027,2]
[385274486,1757727044153,-637.74322079,0.00026145,4]
[385274487,1757727044163,-151.23,0.00026298,7]
[385274488,1757727044172,-500.0,0.00026373,2]
[385274489,1757727044182,-500.0,0.00026373,2]
[385274490,1757727044191,-500.0,0.00026373,2]
[385274491,1757727044200,-151.23,0.00026398,7]
[385274492,1757727044212,-151.23,0.00026498,7]
[385274493,1757727044222,-160.07,0.000265,15]
[385274494,1757727044231,-160.07,0.000265,15]
[385274495,1757727044241,-160.07,0.000265,10]
[385274496,1757727044252,-160.07,0.000265,10]
[385274497,1757727044345,-162.0,0.000265,7]
[385274498,1757727044355,-163.80270304,0.000265,7]
[385274499,1757727044364,-409.0,0.00026522,2]
[385274500,1757727044374,-151.23,0.00026598,7]
[385274501,1757727044383,-151.23,0.00026698,7]
[385274502,1757727044394,-499.3,0.0002677,2]
[385274503,1757727044404,-500.0,0.0002679,2]
[385274504,1757727044414,-151.23,0.00026798,7]
[385274505,1757727044424,-151.0,0.00026898,2]
[385274506,1757727044433,-291.75690557,0.00026898,2]
[385274507,1757727044444,-151.0,0.00026898,2]
[385274508,1757727044453,-151.0,0.00026898,2]
[385274509,1757727044463,-152.90606844,0.00026898,2]
[385274510,1757727044473,-250.0,0.00026898,2]
[385274511,1757727044482,-151.0,0.00026898,2]
[385274512,1757727044491,-253.73925545,0.00026898,2]
[385274513,1757727044503,-293.11652845,0.00026898,2]
[385274514,1757727044512,-2264.10087164,0.00026898,2]
[385274515,1757727044522,-151.23,0.00026898,7]
[385274516,1757727044532,-500.0,0.000269,2]